bitfinex/quotes_BTCUSD_20251104
["timestamp","ask_amount","ask_price","bid_price","bid_amount"]
[1762261788140,0.35781443,103870.0,103850.0,0.23099545]
[1762261788337,0.19256691,103860.0,103850.0,0.20542545]
[1762261788532,1.09227967,103870.0,103850.0,0.20356576]
[1762261788779,1.02858783,103860.0,103850.0,0.00014031]
[1762261788965,1.09853389,103860.0,103850.0,0.01098031]
[1762261789406,0.70007185,103860.0,103850.0,0.21913576]
[1762261789612,0.89263876,103860.0,103850.0,0.24370576]
[1762261789786,1.07643967,103870.0,103850.0,0.24370576]
[1762261790349,0.04284,103870.0,103860.0,0.23270691]
[1762261790596,0.23538837,103870.0,103860.0,0.23270691]
[1762261790950,0.23538837,103870.0,103860.0,0.01557]
[1762261791155,0.93546022,103870.0,103860.0,0.01557]
[1762261791482,0.93846022,103870.0,103860.0,0.2086195]
[1762261791678,0.93546022,103870.0,103860.0,0.2086195]
[1762261792080,0.23538837,103870.0,103860.0,0.2361895]
[1762261792286,0.93546022,103870.0,103860.0,0.2361895]
[1762261792663,0.74291185,103870.0,103860.0,0.2361895]
[1762261793071,0.93546022,103870.0,103860.0,0.01905259]
[1762261793828,0.94747022,103870.0,103860.0,0.01905259]
[1762261794018,0.96331022,103870.0,103860.0,0.01905259]
[1762261794322,1.08251628,103870.0,103860.0,0.00348259]
[1762261795268,1.08251628,103870.0,103860.0,0.00048259]
[1762261795728,1.08351628,103870.0,103860.0,0.00048259]
[1762261796248,1.32981628,103870.0,103860.0,0.00048259]
[1762261796470,1.33181628,103870.0,103860.0,0.00048259]
[1762261797674,1.18476022,103870.0,103860.0,0.2086195]
[1762261798065,0.49669837,103870.0,103860.0,0.01605259]
[1762261798294,1.21261022,103870.0,103860.0,0.00048259]
[1762261798519,1.23724022,103870.0,103860.0,0.00048259]
[1762261798715,1.23724022,103870.0,103860.0,0.1930495]
[1762261798929,1.23715356,103870.0,103860.0,0.1930495]
[1762261799296,0.98921185,103870.0,103860.0,0.2331895]
[1762261799492,1.18176022,103870.0,103860.0,0.2331895]
[1762261799758,1.18176022,103870.0,103860.0,0.01605259]
[1762261799983,1.18176022,103870.0,103860.0,0.04062259]
[1762261800173,0.28914,103870.0,103860.0,0.2331895]
[1762261800575,1.18176022,103870.0,103860.0,0.2331895]
[1762261800818,1.18176022,103870.0,103860.0,0.04062259]
[1762261800965,1.18176022,103870.0,103860.0,0.04362259]
[1762261801162,0.98921185,103870.0,103860.0,0.23588154]
[1762261801516,0.19251131,103890.0,103880.0,0.19252984]
[1762261801738,0.23535131,103890.0,103880.0,0.23266984]
[1762261801957,0.04284,103890.0,103880.0,0.23266984]
[1762261802162,0.24500944,103890.0,103880.0,0.04014]
[1762261802576,1.04056036,103890.0,103880.0,0.01557]
[1762261802785,0.19256691,103860.0,103850.0,0.22855173]
[1762261802994,0.89263876,103860.0,103850.0,0.22855173]
[1762261803228,0.89263876,103860.0,103850.0,0.05153628]
[1762261803403,0.89263876,103860.0,103850.0,0.24412173]
[1762261803620,0.89263876,103860.0,103850.0,0.05153628]
[1762261803763,0.70007185,103860.0,103850.0,0.24412173]
[1762261803959,0.93551708,103870.0,103850.0,0.24412173]
[1762261804188,0.93551708,103870.0,103860.0,0.04014]
[1762261804952,0.04288,103870.0,103860.0,0.23270691]
[1762261805106,0.23542837,103870.0,103860.0,0.04014]
[1762261805320,0.04288,103870.0,103860.0,0.15487576]
[1762261805523,0.19253025,103880.0,103870.0,0.19254647]
[1762261805681,0.29249866,103900.0,103890.0,0.19251131]
[1762261805933,0.33537278,103900.0,103890.0,0.02674]
[1762261806135,0.33537278,103900.0,103890.0,0.05131]
[1762261806335,1.03544463,103900.0,103890.0,0.05131]
[1762261806772,1.03544463,103900.0,103890.0,0.24382131]
[1762261807038,1.0359307,103900.0,103890.0,0.24382131]
[1762261807235,1.0399307,103900.0,103890.0,0.24382131]
[1762261807434,1.0399307,103900.0,103890.0,0.05131]
[1762261807643,1.0399307,103900.0,103890.0,0.24382131]
[1762261807849,1.0399307,103900.0,103890.0,0.05131]
[1762261808049,1.0399307,103900.0,103890.0,0.24382131]
[1762261808298,1.0399307,103900.0,103890.0,0.05131]
[1762261808676,1.08716721,103900.0,103890.0,0.02674]
[1762261808887,0.33985885,103900.0,103890.0,0.24382131]
[1762261809043,1.0399307,103900.0,103890.0,0.21925131]
[1762261809490,1.0399307,103900.0,103890.0,0.24382131]
[1762261809959,1.0399307,103900.0,103890.0,0.05131]
[1762261810162,1.0399307,103900.0,103890.0,0.24382131]
[1762261810522,0.33985885,103900.0,103890.0,0.24382131]
[1762261810707,0.80455792,103900.0,103890.0,0.24382131]
[1762261810924,0.9970507,103900.0,103890.0,0.24382131]
[1762261811127,0.80455792,103900.0,103890.0,0.24382131]
[1762261811332,0.9970507,103900.0,103890.0,0.05131]
[1762261812234,0.9970507,103900.0,103890.0,0.24382131]
[1762261813245,0.9970507,103900.0,103890.0,0.05131]
[1762261813687,0.9970507,103900.0,103890.0,0.24382131]
[1762261813892,0.9970507,103900.0,103890.0,0.05131]
[1762261814055,0.9970507,103900.0,103890.0,0.02674]
[1762261814255,0.9970507,103900.0,103890.0,0.05131]
[1762261814725,0.9970507,103900.0,103890.0,0.24382131]
[1762261815947,0.80455792,103900.0,103890.0,0.24382131]
[1762261816168,0.10448607,103900.0,103890.0,0.24382131]
[1762261816595,0.29697885,103900.0,103890.0,0.05131]
[1762261817267,0.29597885,103900.0,103890.0,0.05131]
[1762261817506,0.9960507,103900.0,103890.0,0.05231]
[1762261818006,0.9930507,103900.0,103890.0,0.05231]
[1762261818532,0.9930507,103900.0,103890.0,0.24482131]
[1762261818735,0.9930507,103900.0,103890.0,0.05231]
[1762261818938,0.9930507,103900.0,103890.0,0.24482131]
[1762261819138,0.9930507,103900.0,103890.0,0.05231]
[1762261819794,0.29297885,103900.0,103890.0,0.24482131]
[1762261820023,0.9930507,103900.0,103890.0,0.24482131]
[1762261820216,0.80055792,103900.0,103890.0,0.24482131]
[1762261820760,0.29297885,103900.0,103890.0,0.24482131]
[1762261821800,0.10048607,103900.0,103890.0,0.24482131]
[1762261822008,0.29297885,103900.0,103890.0,0.24482131]
[1762261822413,0.86212069,103900.0,103890.0,0.24482131]
[1762261822937,0.86212069,103900.0,103890.0,0.05231]
[1762261823690,0.86212069,103900.0,103890.0,0.24482131]
[1762261825209,0.86212069,103900.0,103890.0,0.05231]
[1762261827554,0.95567337,103900.0,103890.0,0.001]
[1762261827771,1.54550223,103900.0,103890.0,0.001]
[1762261828431,0.994324,103900.0,103890.0,0.001]
[1762261828918,0.19251131,103890.0,103880.0,0.21537928]
[1762261829146,0.76165315,103890.0,103880.0,0.21537928]
[1762261829360,0.76165315,103890.0,103880.0,0.23166928]
[1762261830234,0.56914184,103890.0,103880.0,0.23166928]
[1762261830486,0.76165315,103890.0,103880.0,0.23266928]
[1762261831266,0.56914184,103890.0,103880.0,0.23266928]
[1762261831487,0.76165315,103890.0,103880.0,0.23266928]
[1762261831930,0.56914184,103890.0,103880.0,0.23266928]
[1762261832160,0.76165315,103890.0,103880.0,0.23266928]
[1762261833133,0.76165315,103890.0,103880.0,0.23266984]
[1762261833534,0.56914184,103890.0,103880.0,0.23266984]
[1762261833708,0.76165315,103890.0,103880.0,0.23266984]
[1762261833955,0.19251131,103890.0,103880.0,0.23266984]
[1762261834358,0.21325107,103890.0,103880.0,0.23266984]
[1762261834533,0.21325107,103890.0,103880.0,0.04014]
[1762261834681,0.21325107,103890.0,103880.0,0.23266984]
[1762261834886,0.78239291,103890.0,103880.0,0.23266984]
[1762261835805,0.5898816,103890.0,103880.0,0.24350984]
[1762261836032,0.02073976,103890.0,103880.0,0.24350984]
[1762261836278,0.10048607,103900.0,103890.0,0.19251131]
[1762261836439,0.12124261,103900.0,103890.0,0.24325131]
[1762261837430,0.10048607,103900.0,103890.0,0.24325131]
[1762261837653,0.10248607,103900.0,103890.0,0.24325131]
[1762261838110,0.10048607,103900.0,103890.0,0.24325131]
[1762261838990,0.10048607,103900.0,103890.0,0.29325131]
[1762261839196,0.10048607,103900.0,103890.0,0.29425131]
[1762261839405,0.10048607,103900.0,103890.0,0.29325131]
[1762261840290,0.10048607,103900.0,103890.0,0.29825131]
[1762261840711,0.09872007,103900.0,103890.0,0.29825131]
[1762261841554,0.09872007,103900.0,103890.0,0.24825131]
[1762261841728,0.09872007,103900.0,103890.0,0.29825131]
[1762261844475,0.86035469,103900.0,103890.0,0.29825131]
[1762261845179,0.29121285,103900.0,103890.0,0.29825131]
[1762261845634,0.87652469,103900.0,103890.0,0.01584]
[1762261845966,0.87652469,103900.0,103890.0,0.03159]
[1762261846167,0.9181558,103900.0,103890.0,0.03159]
[1762261846445,0.9427658,103900.0,103890.0,0.01284]
[1762261846621,0.9427658,103900.0,103890.0,0.01084]
[1762261847724,0.19251131,103890.0,103880.0,0.03428]
[1762261847924,0.76165315,103890.0,103880.0,0.22680984]
[1762261848114,0.76165315,103890.0,103880.0,0.05003]
[1762261848713,0.76165315,103890.0,103880.0,0.24255984]
[1762261848911,0.76165315,103890.0,103880.0,0.05003]
[1762261849311,0.86235469,103900.0,103880.0,0.24255984]
[1762261849536,0.86135469,103900.0,103890.0,0.23170131]
[1762261849690,0.09872007,103900.0,103890.0,0.23170131]
[1762261849896,0.29121285,103900.0,103890.0,0.23170131]
[1762261850422,0.29121285,103900.0,103890.0,0.03919]
[1762261850636,0.29321285,103900.0,103890.0,0.03829]
[1762261850825,0.86335469,103900.0,103890.0,0.03829]
[1762261851028,0.86135469,103900.0,103890.0,0.03829]
[1762261851819,0.86135469,103900.0,103890.0,0.01485]
[1762261852016,0.86035469,103900.0,103890.0,0.01485]
[1762261852647,0.86035469,103900.0,103890.0,0.03829]
[1762261854302,0.86035469,103900.0,103890.0,0.01485]
[1762261854680,0.19251131,103890.0,103880.0,0.01084]
[1762261854906,0.76165315,103890.0,103880.0,0.22680984]
[1762261855104,0.76165315,103890.0,103880.0,0.24255984]
[1762261855276,0.19251131,103890.0,103880.0,0.24255984]
[1762261855475,0.76243797,103900.0,103880.0,0.24255984]
[1762261855718,0.09872007,103900.0,103890.0,0.03919]
[1762261855919,0.09872007,103900.0,103890.0,0.2477528]
[1762261856147,0.09872007,103900.0,103890.0,0.23170131]
[1762261856662,0.10172007,103900.0,103890.0,0.23170131]
[1762261857013,0.29121285,103900.0,103890.0,0.23170131]
[1762261857218,0.09872007,103900.0,103890.0,0.23170131]
[1762261859355,0.29121285,103900.0,103890.0,0.03919]
[1762261860394,0.86035469,103900.0,103890.0,0.01575]
[1762261860592,0.19251131,103890.0,103880.0,0.22680821]
[1762261860797,0.76165315,103890.0,103880.0,0.22680821]
[1762261860998,0.76165315,103890.0,103880.0,0.24255821]
[1762261861404,0.19251131,103890.0,103880.0,0.24255821]
[1762261861831,0.95493075,103900.0,103880.0,0.24255821]
[1762261862041,0.86035469,103900.0,103890.0,0.20826131]
[1762261862240,0.86035469,103900.0,103890.0,0.23170131]
[1762261862784,0.09872007,103900.0,103890.0,0.23170131]
[1762261863113,0.09972007,103900.0,103890.0,0.23170131]
[1762261863321,0.09872007,103900.0,103890.0,0.23170131]
[1762261863741,0.10072007,103900.0,103890.0,0.28170131]
[1762261864145,0.09972007,103900.0,103890.0,0.28170131]
[1762261864734,0.09872007,103900.0,103890.0,0.28170131]
[1762261865121,0.09872007,103900.0,103890.0,0.32634131]
[1762261866462,0.09872007,103900.0,103890.0,0.32934131]
[1762261870022,0.09872007,103900.0,103890.0,0.32182131]
[1762261871752,0.09872007,103900.0,103890.0,0.32182131]
[1762261872336,0.09772007,103900.0,103890.0,0.32182131]
[1762261873382,0.09772007,103900.0,103890.0,0.33151632]
[1762261873596,0.09772007,103900.0,103890.0,0.34151631]
[1762261873805,1e-08,103900.0,103890.0,0.3515163]
[1762261874006,1e-08,103900.0,103890.0,0.5515163]
[1762261874209,1e-08,103900.0,103890.0,0.5485163]
[1762261874567,1e-08,103900.0,103890.0,0.5515163]
[1762261874898,0.00700001,103900.0,103890.0,0.5525163]
[1762261875740,0.00700001,103900.0,103890.0,0.5475163]
[1762261876196,0.00700001,103900.0,103890.0,0.7485163]
[1762261879310,0.00700001,103900.0,103890.0,0.5485163]
[1762261879712,0.00700001,103900.0,103890.0,0.53851631]
[1762261879911,0.00700001,103900.0,103890.0,0.5485163]
[1762261880507,0.00700001,103900.0,103890.0,0.5288213]
[1762261880708,0.00700001,103900.0,103890.0,0.31882131]
[1762261880904,0.00700001,103900.0,103890.0,0.27618131]
[1762261881135,0.00700001,103900.0,103890.0,0.31882131]
[1762261884598,0.00700001,103900.0,103890.0,0.27618131]
[1762261884799,0.00700001,103900.0,103890.0,0.31882131]
[1762261885774,0.00700001,103900.0,103890.0,0.26882131]
[1762261885980,0.00700001,103900.0,103890.0,0.31882131]
[1762261886894,0.00700001,103900.0,103890.0,0.32876131]
[1762261889787,0.00600001,103900.0,103890.0,0.32876131]
[1762261890656,0.00574398,103900.0,103890.0,0.32876131]
[1762261892423,0.19823676,103900.0,103890.0,0.32876131]
[1762261892636,0.89184748,103900.0,103890.0,0.28512131]
[1762261892851,0.19249278,103900.0,103890.0,0.32776131]
[1762261893054,0.19449278,103900.0,103890.0,0.28412131]
[1762261893266,0.19549278,103900.0,103890.0,0.32676131]
[1762261893474,0.89484748,103900.0,103890.0,0.09913]
[1762261893686,0.89484748,103900.0,103890.0,0.10113]
[1762261893891,0.89184748,103900.0,103890.0,0.10113]
[1762261894096,0.89184748,103900.0,103890.0,0.11213]
[1762261894502,0.89184748,103900.0,103890.0,0.10113]
[1762261894705,0.90423748,103900.0,103890.0,0.02769]
[1762261894924,0.94240748,103900.0,103890.0,0.02094]
[1762261895123,0.92932694,103900.0,103890.0,0.21345131]
[1762261895450,0.90137694,103900.0,103890.0,0.05736]
[1762261895590,0.90137694,103900.0,103890.0,0.06036]
[1762261895795,0.90137694,103900.0,103890.0,0.05736]
[1762261896200,0.90137694,103900.0,103890.0,0.05036]
[1762261897179,0.90137694,103900.0,103890.0,0.05736]
[1762261897385,0.6993547,103900.0,103890.0,0.2663238]
[1762261897584,0.89184748,103900.0,103890.0,0.29987131]
[1762261898775,0.90170987,103900.0,103890.0,0.29987131]
[1762261898974,0.6993547,103900.0,103890.0,0.29987131]
[1762261899558,0.19391106,103910.0,103900.0,0.19249278]
[1762261899774,0.89326576,103910.0,103900.0,0.01553]
[1762261900404,0.19391005,103910.0,103900.0,0.30016205]
[1762261900600,0.19391005,103910.0,103900.0,0.28091278]
[1762261900781,0.19391005,103910.0,103900.0,0.28591278]
[1762261900991,0.89326475,103910.0,103900.0,0.28591278]
[1762261901193,0.89326475,103910.0,103900.0,0.04342]
[1762261901387,0.90304704,103910.0,103900.0,0.09342]
[1762261901594,0.90304704,103910.0,103900.0,0.28591278]
[1762261901999,0.90304704,103910.0,103900.0,0.28891278]
[1762261902614,0.71057279,103910.0,103900.0,0.28891278]
[1762261903515,0.0014358,103910.0,103900.0,0.38439185]
[1762261905121,0.0014358,103910.0,103900.0,0.38139185]
[1762261905329,0.0014358,103910.0,103900.0,0.37639185]
[1762261905565,0.0014358,103910.0,103900.0,0.38139185]
[1762261905735,0.0014358,103910.0,103900.0,0.38939185]
[1762261908335,0.0014358,103910.0,103900.0,0.37639185]
[1762261908733,0.0074358,103910.0,103900.0,0.37639185]
[1762261913465,0.0074358,103910.0,103900.0,0.39639183]
[1762261913875,0.0074358,103910.0,103900.0,0.40621545]
[1762261914479,0.73800643,103950.0,103940.0,0.2424187]
[1762261914691,0.73815228,103950.0,103940.0,0.2691687]
[1762261914892,0.73815228,103950.0,103940.0,0.2917187]
[1762261915064,0.7391164,103950.0,103940.0,0.2917187]
[1762261915669,0.0397617,103950.0,103940.0,0.2917187]
[1762261915882,0.03000272,103950.0,103940.0,0.2947187]
[1762261916302,0.00110997,103950.0,103940.0,0.2947187]
[1762261916506,0.00110997,103950.0,103940.0,0.2957187]
[1762261916659,0.72935472,103950.0,103940.0,0.2957187]
[1762261917234,0.92175491,103950.0,103940.0,0.2957187]
[1762261917356,0.92175491,103950.0,103940.0,0.2457187]
[1762261917569,0.93153508,103950.0,103940.0,0.0533]
[1762261917986,0.93153508,103950.0,103940.0,0.2457187]
[1762261918186,0.73913489,103950.0,103940.0,0.2457187]
[1762261918598,0.72935472,103950.0,103940.0,0.2457187]
[1762261919012,0.70046467,103950.0,103940.0,0.2457187]
[1762261920670,0.03000002,103950.0,103940.0,0.2957187]
[1762261920869,0.00110997,103950.0,103940.0,0.3383187]
[1762261921917,0.00110997,103950.0,103940.0,0.3343187]
[1762261922348,0.00110997,103950.0,103940.0,0.3373187]
[1762261922754,0.00110997,103950.0,103940.0,0.3433187]
[1762261923711,0.00110997,103950.0,103940.0,0.3403187]
[1762261923922,0.00410997,103950.0,103940.0,0.3343187]
[1762261924346,0.00510997,103950.0,103940.0,0.3343187]
[1762261924763,0.00510997,103950.0,103940.0,0.3334687]
[1762261928286,0.00510997,103950.0,103940.0,0.2908687]
[1762261928468,0.00472757,103950.0,103940.0,0.3334687]
[1762261932477,0.00472757,103950.0,103940.0,0.2834687]
[1762261932705,0.00472757,103950.0,103940.0,0.3334687]
[1762261933349,0.00472757,103950.0,103940.0,0.3274687]
[1762261933795,1e-08,103950.0,103940.0,0.53746869]
[1762261934015,1e-08,103950.0,103940.0,0.54746868]
[1762261934649,0.0004,103980.0,103970.0,0.24236318]
[1762261934905,0.0004,103980.0,103970.0,0.42029225]
[1762261935107,1e-08,103980.0,103970.0,0.44029223]
[1762261935314,1e-08,103980.0,103970.0,0.46916238]
[1762261935724,1e-08,103980.0,103970.0,0.45916239]
[1762261936355,0.00300001,103980.0,103970.0,0.45916239]
[1762261937393,0.00300001,103980.0,103970.0,0.46874643]
[1762261938430,0.00300001,103980.0,103970.0,0.47874642]
[1762261938636,1e-08,103980.0,103970.0,0.46874643]
[1762261938986,1e-08,103980.0,103970.0,0.47874642]
[1762261940231,0.00072276,103980.0,103970.0,0.47874642]
[1762261940814,0.00072276,103980.0,103970.0,0.46874643]
[1762261941061,0.00072276,103980.0,103970.0,0.47874642]
[1762261941900,0.00072276,103980.0,103970.0,0.48596642]
[1762261942636,1e-08,103980.0,103970.0,0.48596642]
[1762261945402,1e-08,103980.0,103970.0,0.43596642]
[1762261945601,1e-08,103980.0,103970.0,0.48592642]
[1762261946811,1e-08,103980.0,103970.0,0.50519642]
[1762261947026,1e-08,103980.0,103970.0,0.44336642]
[1762261947230,1e-08,103980.0,103970.0,0.68592642]
[1762261947745,1e-08,103980.0,103970.0,0.67592643]
[1762261947952,1e-08,103980.0,103970.0,0.68592642]
[1762261949878,1e-08,103980.0,103970.0,0.64336642]
[1762261950077,1e-08,103980.0,103970.0,0.68596642]
[1762261950287,1e-08,103980.0,103970.0,0.64340642]
[1762261950488,1e-08,103980.0,103970.0,0.68596642]
[1762261950723,1e-08,103980.0,103970.0,0.67596643]
[1762261950878,1e-08,103980.0,103970.0,0.68596642]
[1762261951080,1e-08,103980.0,103970.0,0.67596643]
[1762261951281,1e-08,103980.0,103970.0,0.68596642]
[1762261951514,1e-08,103980.0,103970.0,0.83336642]
[1762261952501,1e-08,103980.0,103970.0,0.82336643]
[1762261952953,1e-08,103980.0,103970.0,0.83336642]
[1762261954187,1e-08,103980.0,103970.0,0.82336643]
[1762261954381,1e-08,103980.0,103970.0,0.83336642]
[1762261957363,1e-08,103980.0,103970.0,0.79080642]
[1762261957634,1e-08,103980.0,103970.0,0.78080643]
[1762261957845,1e-08,103980.0,103970.0,0.5612224]
[1762261957993,1e-08,103980.0,103970.0,0.61378239]
[1762261959285,1e-08,103980.0,103970.0,0.6037824]
[1762261959481,1e-08,103980.0,103970.0,0.61378239]
[1762261959991,1e-08,103980.0,103970.0,0.6037824]
[1762261960215,1e-08,103980.0,103970.0,0.57122239]
[1762261960353,1e-08,103980.0,103970.0,0.61378239]
[1762261963433,1e-08,103980.0,103970.0,0.46638239]
[1762261963872,1e-08,103980.0,103970.0,0.4563824]
[1762261964069,1e-08,103980.0,103970.0,0.46638239]
[1762261964299,0.39973818,103980.0,103970.0,0.33495225]
[1762261964494,0.79947635,103980.0,103970.0,0.38495225]
[1762261964896,0.79947635,103980.0,103970.0,0.42751225]
[1762261965479,0.79947635,103980.0,103970.0,0.43651225]
[1762261965848,0.79947635,103980.0,103970.0,0.43951225]
[1762261966834,0.79947635,103980.0,103970.0,0.43051225]
[1762261967034,0.79947635,103980.0,103970.0,0.38795225]
[1762261967234,0.99182103,103980.0,103970.0,0.20758907]
[1762261967453,1.56005332,103980.0,103970.0,0.01504]
[1762261967673,0.83237441,103980.0,103970.0,0.24210949]
[1762261967904,0.83237441,103980.0,103970.0,0.29723318]
[1762261967905,0.84901712,103980.0,103970.0,0.29723318]
[1762261968110,0.82013441,103980.0,103970.0,0.29723318]
[1762261968340,0.79947635,103980.0,103970.0,0.28523318]
[1762261968541,0.79947635,103980.0,103970.0,0.29923318]
[1762261968771,0.80047635,103980.0,103970.0,0.29623318]
[1762261968968,0.80047635,103980.0,103970.0,0.30023318]
[1762261969382,0.80047635,103980.0,103970.0,0.29623318]
[1762261969716,0.80047635,103980.0,103970.0,0.30323318]
[1762261970125,0.79947635,103980.0,103970.0,0.28923318]
[1762261970394,0.79947635,103980.0,103970.0,0.29823318]
[1762261972214,0.99182103,103980.0,103970.0,0.29823318]
[1762261972823,0.19234469,103980.0,103970.0,0.29823318]
[1762261973021,0.99182103,103980.0,103970.0,0.29823318]
[1762261973910,0.19234469,103980.0,103970.0,0.29823318]
[1762261974116,0.99182103,103980.0,103970.0,0.29823318]
[1762261976649,1e-08,103980.0,103970.0,0.39371225]
[1762261976856,0.39973818,103980.0,103970.0,0.39371225]
[1762261978169,0.79947635,103980.0,103970.0,0.39371225]
[1762261978365,0.99182103,103980.0,103970.0,0.39371225]
[1762261979013,0.79947635,103980.0,103970.0,0.39371225]
[1762261981307,1e-08,103980.0,103970.0,0.39371225]
[1762261981715,0.99182103,103980.0,103970.0,0.39371225]
[1762261982052,0.79947635,103980.0,103970.0,0.39371225]
[1762261983573,0.99182103,103980.0,103970.0,0.08151]
[1762261983781,1.4204492,103980.0,103970.0,0.01604]
[1762261983957,1.4448192,103980.0,103970.0,0.06604]
[1762261984403,1.4448192,103980.0,103970.0,0.01604]
[1762261985465,1.4448192,103980.0,103970.0,0.00904]
[1762261985661,1.4448192,103980.0,103970.0,4e-05]
[1762261985894,1.53939526,103980.0,103970.0,0.00304]
[1762261986068,1.53939526,103980.0,103970.0,0.00504]
[1762261987631,1.53131148,103980.0,103970.0,0.00504]
[1762261992619,1.55192582,103980.0,103970.0,0.00504]
[1762261996625,1.95166399,103980.0,103970.0,0.00504]
[1762261996840,0.19238168,103960.0,103950.0,4e-05]
[1762261997039,1.45747236,103960.0,103950.0,4e-05]
[1762261997239,1.50252457,103960.0,103950.0,4e-05]
[1762261997694,1.92017715,103960.0,103950.0,4e-05]
[1762261997936,1.52043898,103960.0,103950.0,4e-05]
[1762261998092,1.52043898,103960.0,103950.0,0.00504]
[1762261998293,1.52043898,103960.0,103950.0,0.00704]
[1762261998748,0.32122447,103960.0,103950.0,0.01004]
[1762261998914,1.52043898,103960.0,103950.0,0.00304]
[1762261999300,1.52043898,103960.0,103950.0,0.00504]
[1762262002352,1.51653281,103960.0,103950.0,0.00504]
[1762262004462,1.11814272,103960.0,103950.0,0.00504]
[1762262011687,1.12709341,103960.0,103950.0,0.00504]
[1762262011884,1.15598702,103960.0,103950.0,0.00504]
[1762262015083,1.80269923,103960.0,103950.0,1e-08]
[1762262015302,1.82947516,103960.0,103950.0,1e-08]
[1762262015512,4.82947516,103960.0,103950.0,1e-08]
[1762262015723,4.85347516,103960.0,103950.0,1e-08]
[1762262015939,4.82947516,103960.0,103950.0,1e-08]
[1762262016149,0.1924187,103940.0,103930.0,0.00160928]
[1762262016355,1.20291614,103940.0,103930.0,0.00175513]
[1762262016559,1.22753614,103940.0,103930.0,0.00175513]
[1762262016979,1.23475614,103940.0,103930.0,0.00175513]
[1762262017333,1.23475614,103940.0,103930.0,0.00575513]
[1762262017945,1.23475614,103940.0,103930.0,0.00875513]
[1762262018603,0.43393172,103940.0,103930.0,0.00875513]
[1762262018817,1.23473857,103940.0,103930.0,0.00875513]
[1762262018998,0.43391415,103940.0,103930.0,0.00875513]
[1762262019198,0.83432636,103940.0,103930.0,0.00875513]
[1762262020368,0.8253726,103940.0,103930.0,0.00875513]
[1762262021478,1.22578481,103940.0,103930.0,0.00875513]
[1762262022345,1.23473307,103940.0,103930.0,0.00875513]
[1762262023902,1.23473258,103940.0,103930.0,0.00875513]
[1762262027623,0.8253726,103940.0,103930.0,0.00875513]
[1762262028101,0.83432656,103940.0,103930.0,0.00875513]
[1762262028299,0.8253726,103940.0,103930.0,0.00875513]
[1762262030287,0.72989353,103940.0,103930.0,0.00875513]
[1762262030465,0.65956996,103940.0,103930.0,0.22781234]
[1762262030669,0.65956996,103940.0,103930.0,0.03537513]
[1762262031095,0.65956996,103940.0,103930.0,0.2115956]
[1762262031220,0.68391996,103940.0,103930.0,0.01915839]
[1762262031851,0.71281566,103940.0,103930.0,0.01915839]
[1762262032053,0.80739172,103940.0,103930.0,0.00850839]
[1762262032477,1.20780393,103940.0,103930.0,0.00850839]
[1762262032631,1.20740393,103940.0,103930.0,0.00714585]
[1762262035094,1.21636175,103940.0,103930.0,0.00714585]
[1762262035295,1.20740393,103940.0,103930.0,0.00714585]
[1762262036351,0.81595082,103940.0,103930.0,0.00714585]
[1762262037150,0.81595232,103940.0,103930.0,0.00714585]
[1762262037360,0.80699172,103940.0,103930.0,0.00714585]
[1762262038406,0.81595376,103940.0,103930.0,0.00714585]
[1762262038612,0.80699172,103940.0,103930.0,0.00714585]
[1762262040379,0.78264172,103940.0,103930.0,0.00714585]
[1762262040800,0.80699172,103940.0,103930.0,0.00714585]
[1762262043385,0.80699172,103940.0,103930.0,0.00850839]
[1762262043591,0.80676172,103940.0,103930.0,0.00850839]
[1762262044873,0.81573529,103940.0,103930.0,0.00850839]
[1762262045550,1.2161475,103940.0,103930.0,0.00850839]
[1762262046922,1.2161475,103940.0,103930.0,0.00550839]
[1762262047131,1.2161475,103940.0,103930.0,0.00250839]
[1762262047492,1.2161475,103940.0,103930.0,0.00350839]
[1762262048119,1.4624475,103940.0,103930.0,0.00350839]
[1762262049597,1.06203529,103940.0,103930.0,0.00350839]
[1762262055615,1.4624475,103940.0,103930.0,0.00350839]
[1762262056921,1.06203529,103940.0,103930.0,0.00350839]
[1762262057811,1.4624475,103940.0,103930.0,0.00350839]
[1762262059364,0.96745923,103940.0,103930.0,0.00350839]
[1762262060326,1.36787144,103940.0,103930.0,0.00350839]
[1762262062321,0.96745923,103940.0,103930.0,0.00350839]
[1762262064362,1.76873902,103940.0,103930.0,0.00350839]
[1762262067615,1.36817502,103940.0,103930.0,0.00350839]
[1762262067772,1.46275108,103940.0,103930.0,0.00350839]
[1762262067971,1.36817502,103940.0,103930.0,0.00350839]
[1762262069154,1.76873902,103940.0,103930.0,0.00350839]
[1762262070981,1.36817502,103940.0,103930.0,0.00350839]
[1762262071417,1.36817502,103940.0,103930.0,0.2182456]
[1762262071418,1.31922145,103940.0,103930.0,0.2182456]
[1762262071619,1.31922145,103940.0,103930.0,0.2926656]
[1762262071620,1.30688145,103940.0,103930.0,0.2926656]
[1762262071848,0.4294597,103940.0,103930.0,0.2926656]
[1762262072671,0.6218784,103940.0,103930.0,0.2926656]
[1762262072899,0.6218784,103940.0,103930.0,0.2916656]
[1762262073075,1.0224424,103940.0,103930.0,0.2956656]
[1762262073368,1.0224424,103940.0,103930.0,0.2986656]
[1762262073851,0.6218784,103940.0,103930.0,0.2986656]
[1762262074377,1.0224424,103940.0,103930.0,0.2986656]
[1762262074571,0.8300237,103940.0,103930.0,0.2986656]
[1762262074750,1.0224424,103940.0,103930.0,0.2986656]
[1762262075053,1.0224424,103940.0,103930.0,0.10622839]
[1762262075261,1.0224424,103940.0,103930.0,0.03180839]
[1762262078852,1.16626975,103940.0,103930.0,0.00950839]
[1762262079066,1.56683375,103940.0,103930.0,0.00950839]
[1762262079267,1.16626975,103940.0,103930.0,0.00950839]
[1762262080023,1.16626975,103940.0,103930.0,0.00650839]
[1762262080363,1.16626975,103940.0,103930.0,0.00850839]
[1762262080571,1.16626975,103940.0,103930.0,0.00350839]
[1762262081010,1.16626975,103940.0,103930.0,0.00650839]
[1762262090001,1.16117054,103940.0,103930.0,0.00650839]
[1762262090254,1.06790319,103940.0,103930.0,0.00650839]
[1762262090585,1.02868319,103940.0,103930.0,0.02153839]
[1762262091416,1.04534319,103940.0,103930.0,0.00650839]
[1762262091627,1.06824319,103940.0,103930.0,0.00650839]
[1762262097858,1.04534319,103940.0,103930.0,0.00650839]
[1762262098061,1.09461552,103940.0,103930.0,0.00650839]
[1762262098344,1.11751552,103940.0,103930.0,0.00650839]
[1762262098649,1.53875934,103940.0,103930.0,0.00650839]
[1762262098856,1.56568609,103940.0,103930.0,0.00650839]
[1762262099939,3.09289423,103940.0,103930.0,1e-08]
[1762262100147,3.04289423,103940.0,103930.0,1e-08]
[1762262100285,3.06689423,103940.0,103930.0,1e-08]
[1762262100478,1.86520223,103940.0,103930.0,1e-08]
[1762262100718,0.19243721,103930.0,103920.0,4e-05]
[1762262100916,1.68296091,103930.0,103920.0,4e-05]
[1762262101116,1.28240094,103930.0,103920.0,4e-05]
[1762262101326,1.2824033,103930.0,103920.0,4e-05]